bitfinex-derivatives/quotes_BTCF0:USTF0_20210404
["timestamp","ask_amount","ask_price","bid_price","bid_amount"]
[1617567048354,0.93617204,57904.0,57903.0,0.27]
[1617567048556,0.63299989,57904.0,57903.0,0.27]
[1617567048756,4.30999989,57904.0,57903.0,0.27]
[1617567048955,5.11800794,57904.0,57903.0,0.27]
[1617567049156,5.22526449,57904.0,57903.0,0.27]
[1617567049755,1.54826449,57904.0,57903.0,0.27]
[1617567049955,1.54826449,57904.0,57903.0,3.7934]
[1617567050555,1.6091297,57904.0,57903.0,3.7934]
[1617567051156,1.6091297,57904.0,57903.0,3.90065655]
[1617567051356,1.4811597,57904.0,57903.0,3.90065655]
[1617567051557,0.86887326,57904.0,57903.0,3.90065655]
[1617567051957,0.86887326,57904.0,57903.0,4.46464457]
[1617567052759,0.80800805,57904.0,57903.0,4.46464457]
[1617567053360,0.42446788,57904.0,57903.0,4.46464457]
[1617567053660,0.42446788,57904.0,57903.0,4.90983949]
[1617567053859,0.42446788,57904.0,57903.0,5.02506949]
[1617567054061,0.36361372,57904.0,57903.0,5.02506949]
[1617567054460,0.36361372,57904.0,57903.0,1.50166949]
[1617567057266,0.4244674,57904.0,57903.0,1.50166949]
[1617567057868,0.36361372,57904.0,57903.0,2.59294962]
[1617567058270,0.42446623,57904.0,57903.0,2.59294962]
[1617567058567,0.36361372,57904.0,57903.0,2.59294962]
[1617567059568,0.36361372,57904.0,57903.0,1.39294962]
[1617567060370,0.36361372,57904.0,57903.0,1.27771962]
[1617567061572,0.36361372,57904.0,57903.0,1.18643949]
[1617567062371,0.49884372,57904.0,57903.0,1.18643949]
[1617567062573,0.13523,57904.0,57903.0,1.07918294]
[1617567062773,4.31216721,57904.0,57903.0,0.63398802]
[1617567063174,4.54267975,57904.0,57903.0,0.63398802]
[1617567063374,4.6499363,57904.0,57903.0,0.63398802]
[1617567063573,5.64962113,57904.0,57903.0,0.63398802]
[1617567064097,5.64962113,57904.0,57903.0,0.2698]
[1617567064482,6.15487747,57904.0,57903.0,0.2698]
[1617567071385,5.15487747,57904.0,57903.0,0.2698]
[1617567071585,6.15487747,57904.0,57903.0,0.2698]
[1617567073685,7.65487747,57904.0,57903.0,0.2698]
[1617567074286,8.2182557,57904.0,57903.0,0.2698]
[1617567076489,8.2182557,57904.0,57903.0,0.26878542]
[1617567077690,6.7182557,57904.0,57903.0,0.26878542]
[1617567078093,3.3507557,57904.0,57903.0,0.26878542]
[1617567078295,3.3507557,57904.0,57903.0,3.44383542]
[1617567078695,3.12024316,57904.0,57903.0,3.44383542]
[1617567078894,2.55686493,57904.0,57903.0,3.44383542]
[1617567080096,2.55686493,57904.0,57903.0,0.41113542]
[1617567080296,2.55686493,57904.0,57903.0,0.26878542]
[1617567080697,5.15506493,57904.0,57903.0,0.26878542]
[1617567081399,5.38699509,57904.0,57903.0,0.26878542]
[1617567081900,5.95070562,57904.0,57903.0,0.26878542]
[1617567082300,5.38699509,57904.0,57903.0,0.26878542]
[1617567082702,5.95072079,57904.0,57903.0,0.26878542]
[1617567083103,5.38699509,57904.0,57903.0,0.26878542]
[1617567084805,6.34105259,57904.0,57903.0,0.26878542]
[1617567085606,5.38699509,57904.0,57903.0,0.26878542]
[1617567088411,5.95002924,57904.0,57903.0,0.26878542]
[1617567088810,5.38699509,57904.0,57903.0,0.26878542]
[1617567089311,6.34052082,57904.0,57903.0,0.26878542]
[1617567089711,5.38699509,57904.0,57903.0,0.26878542]
[1617567090513,5.9499518,57904.0,57903.0,0.26878542]
[1617567094218,5.38699509,57904.0,57903.0,0.26878542]
[1617567097223,5.38699509,57904.0,57903.0,0.37863542]
[1617567097824,1.65356509,57904.0,57903.0,3.66653542]
[1617567098224,1.42163493,57904.0,57903.0,3.66653542]
[1617567099525,1.42163493,57904.0,57903.0,3.77379197]
[1617567100726,0.91637859,57904.0,57903.0,0.68589197]
[1617567108838,0.91637859,57904.0,57903.0,4.09579197]
[1617567113746,1.42126684,57904.0,57903.0,4.09579197]
[1617567114845,0.10725655,57904.0,57903.0,4.09579197]
[1617567115244,1.42031943,57904.0,57903.0,4.09579197]
[1617567116145,0.91531078,57904.0,57903.0,0.68589197]
[1617567117748,1.42008218,57904.0,57903.0,0.68589197]
[1617567118749,0.80805423,57904.0,57903.0,0.68589197]
[1617567119953,0.86891944,57904.0,57903.0,0.68589197]
[1617567120354,0.80805423,57904.0,57903.0,1.05009815]
[1617567121153,0.80805423,57904.0,57903.0,0.68589197]
[1617567122656,0.80805423,57904.0,57903.0,0.73769197]
[1617567122854,0.80805423,57904.0,57903.0,0.68589197]
[1617567123354,0.80805423,57904.0,57903.0,1.05010137]
[1617567124156,0.80805423,57904.0,57903.0,4.35150137]
[1617567124757,0.3636345,57904.0,57903.0,5.35150137]
[1617567125159,0.36399157,57905.0,57903.0,5.79661135]
[1617567125558,0.36402018,57906.0,57904.0,1.96144079]
[1617567125763,0.36402018,57906.0,57905.0,0.2]
[1617567125957,0.36402018,57906.0,57905.0,0.47]
[1617567126160,0.36408082,57908.0,57905.0,2.93142759]
[1617567126359,0.36408082,57908.0,57905.0,3.93142759]
[1617567126560,0.36408082,57908.0,57907.0,1.00925815]
[1617567126760,0.36408082,57908.0,57907.0,2.50925815]
[1617567126961,0.36412315,57909.0,57907.0,3.77925815]
[1617567127362,0.36327981,57914.0,57908.0,0.4241578]
[1617567127563,0.36327981,57914.0,57913.0,3.3083]
[1617567127765,0.3633438,57918.0,57913.0,5.11555655]
[1617567127962,0.3633438,57918.0,57913.0,6.12555655]
[1617567128165,0.36333504,57920.0,57913.0,6.54929969]
[1617567128362,0.36333504,57920.0,57918.0,0.2]
[1617567128563,0.36332446,57922.0,57920.0,0.2]
[1617567128763,0.36332446,57922.0,57921.0,3.6476]
[1617567128963,0.36332446,57922.0,57921.0,3.8476]
[1617567129163,0.36332446,57922.0,57921.0,3.8576]
[1617567129363,0.36332446,57922.0,57921.0,4.8576]
[1617567129664,0.36332446,57922.0,57921.0,4.96485655]
[1617567134468,0.36332446,57922.0,57921.0,6.46485655]
[1617567136070,0.36312597,57925.0,57921.0,6.46485655]
[1617567136469,0.36312597,57925.0,57921.0,5.46485655]
[1617567136768,0.36312597,57925.0,57924.0,1.0]
[1617567136969,0.44379403,57929.0,57924.0,1.2]
[1617567137168,0.44379403,57929.0,57924.0,1.47]
[1617567137368,0.36312313,57925.0,57924.0,0.47]
[1617567137768,0.36312313,57925.0,57924.0,2.97]
[1617567138173,0.36238644,57929.0,57924.0,2.97]
[1617567138570,0.36238644,57929.0,57928.0,1.0]
[1617567138771,0.36238644,57929.0,57928.0,1.2]
[1617567138971,0.36238644,57929.0,57928.0,1.47]
[1617567139896,0.36238644,57929.0,57928.0,1.57725655]
[1617567140276,0.44288986,57935.0,57928.0,1.57725655]
[1617567140490,0.44288986,57935.0,57928.0,4.35635655]
[1617567140707,0.44283116,57936.0,57933.0,1.0]
[1617567140913,0.44283116,57936.0,57928.0,2.07725655]
[1617567140914,0.44283116,57936.0,57935.0,0.2]
[1617567141099,0.44279375,57944.0,57935.0,2.7]
[1617567141275,0.44279375,57944.0,57935.0,2.71]
[1617567141475,0.44279375,57944.0,57935.0,1.71]
[1617567141676,0.44275291,57950.0,57935.0,1.71]
[1617567141877,0.44275291,57950.0,57949.0,0.30725655]
[1617567142078,0.44274445,57951.0,57949.0,0.46858655]
[1617567142278,0.44274445,57951.0,57949.0,0.73858655]
[1617567142479,0.44274415,57952.0,57949.0,0.73858655]
[1617567142880,0.0608221,57950.0,57949.0,1.73858655]
[1617567143079,0.0608221,57950.0,57949.0,0.73858655]
[1617567143282,0.44274415,57952.0,57949.0,0.73858655]
[1617567143479,0.44274415,57952.0,57949.0,1.73858655]
[1617567143680,0.06081974,57950.0,57949.0,0.73858655]
[1617567144282,0.4426695,57955.0,57949.0,0.73858655]
[1617567144481,0.4426695,57955.0,57949.0,1.73858655]
[1617567144683,0.4426695,57955.0,57954.0,0.2]
[1617567144982,0.4426695,57955.0,57954.0,0.47]
[1617567147583,0.44266807,57956.0,57954.0,0.27]
[1617567147983,0.44266807,57956.0,57949.0,0.10725655]
[1617567147984,0.4426806,57955.0,57950.0,0.27]
[1617567148387,0.4426806,57955.0,57949.0,0.10725655]
[1617567148586,0.06082355,57957.0,57952.0,0.2]
[1617567148985,0.06082355,57957.0,57953.0,0.01]
[1617567149585,0.06082355,57957.0,57951.0,0.27]
[1617567149985,0.06082355,57957.0,57956.0,0.10725655]
[1617567150585,0.06082355,57957.0,57956.0,0.11725655]
[1617567151487,3.5256,57958.0,57956.0,0.11725655]
[1617567151687,0.10725655,57960.0,57956.0,0.11725655]
[1617567154293,0.44166955,57959.0,57956.0,0.11725655]
[1617567154694,0.10725655,57960.0,57956.0,0.11725655]
[1617567165409,0.46838828,57960.0,57956.0,0.11725655]
[1617567166811,0.36114281,57959.0,57956.0,0.11725655]
[1617567167810,0.10725655,57960.0,57956.0,0.11725655]
[1617567167811,0.36115184,57957.0,57956.0,0.11725655]
[1617567168913,0.36114935,57958.0,57956.0,0.11725655]
[1617567172618,0.36114935,57958.0,57956.0,0.01]
[1617567173018,0.10725655,57957.0,57955.0,0.10725655]
[1617567173419,0.10725655,57957.0,57956.0,0.01]
[1617567175221,0.46841763,57957.0,57956.0,0.01]
[1617567176122,0.91093549,57957.0,57956.0,0.01]
[1617567177635,4.36463549,57957.0,57953.0,0.27]
[1617567177848,5.49781549,57957.0,57956.0,0.27]
[1617567178226,5.49781549,57957.0,57954.0,0.27]
[1617567178427,6.22518025,57957.0,57956.0,0.27]
[1617567178827,0.28530589,57956.0,57955.0,0.26]
[1617567179027,0.28530589,57956.0,57937.0,3.1418]
[1617567179229,0.24795655,57938.0,57936.0,0.4968]
[1617567179428,3.81905655,57938.0,57936.0,0.4968]
[1617567179627,3.81905655,57938.0,57937.0,0.27]
[1617567180030,4.1812249,57938.0,57937.0,0.27]
[1617567180528,3.81905655,57938.0,57937.0,0.27]
[1617567180930,4.1812264,57938.0,57937.0,0.27]
[1617567187441,4.62513154,57938.0,57937.0,0.27]
[1617567191247,4.62513154,57938.0,57937.0,0.37725655]
[1617567193851,3.7118,57938.0,57937.0,0.27]
[1617567194052,4.51889125,57938.0,57937.0,0.27]
[1617567194952,0.80709125,57938.0,57937.0,0.27]
[1617567195153,0.80709125,57938.0,57937.0,2.9287]
[1617567195352,0.80709125,57938.0,57937.0,3.03595655]
[1617567195752,0.44385434,57942.0,57937.0,3.03595655]
[1617567195954,0.44385434,57942.0,57938.0,0.2]
[1617567196155,0.44382404,57946.0,57941.0,2.6358]
[1617567196554,0.44382404,57946.0,57942.0,0.01]
[1617567196955,0.44382404,57946.0,57942.0,0.21]
[1617567197155,0.44382275,57947.0,57942.0,0.21]
[1617567197354,0.44382275,57947.0,57946.0,0.10725655]
[1617567197555,0.44382275,57947.0,57946.0,0.47687655]
[1617567197756,0.44382275,57947.0,57946.0,0.54687655]
[1617567201871,3.05552275,57947.0,57946.0,0.54687655]
[1617567202869,3.25048996,57947.0,57946.0,0.54687655]
[1617567203760,3.05552275,57947.0,57946.0,0.54687655]
[1617567205263,0.44382275,57947.0,57946.0,0.54687655]
[1617567205865,0.10725655,57949.0,57946.0,0.54687655]
[1617567206263,0.55163542,57949.0,57946.0,0.54687655]
[1617567206465,0.55163542,57949.0,57948.0,3.0412]
[1617567206967,0.55163542,57949.0,57948.0,3.3112]
[1617567207167,0.10725655,57949.0,57948.0,3.3112]
[1617567208071,0.55171361,57949.0,57948.0,3.3112]
[1617567208471,0.55171361,57949.0,57948.0,0.27]
[1617567208869,0.55171361,57949.0,57947.0,0.27]
[1617567209070,2.7601,57948.0,57947.0,0.27]
[1617567209269,3.20443676,57948.0,57942.0,0.36173099]
[1617567209469,0.10725655,57943.0,57942.0,0.36173099]
[1617567209669,0.10725655,57943.0,57941.0,2.9202]
[1617567209869,0.10725655,57943.0,57942.0,0.01]
[1617567210674,0.55161197,57943.0,57942.0,0.01]
[1617567216077,0.10725655,57943.0,57942.0,0.01]
[1617567216677,0.55160866,57943.0,57942.0,0.01]
[1617567217077,0.10725655,57943.0,57942.0,0.01]
[1617567217482,0.55161411,57943.0,57942.0,0.01]
[1617567226890,0.44435756,57943.0,57942.0,0.14022]
[1617567227491,0.44452884,57944.0,57942.0,0.14022]
[1617567228592,2.7601,57948.0,57942.0,0.14022]
[1617567228593,0.44452306,57946.0,57942.0,0.5034223]
[1617567230291,0.44452306,57946.0,57943.0,0.36329171]
[1617567230691,0.44468701,57947.0,57945.0,0.3632573]
[1617567231094,0.44468701,57947.0,57946.0,3.1312]
[1617567231593,0.44468701,57947.0,57946.0,3.23845655]
[1617567235098,0.44468701,57947.0,57946.0,0.01]
[1617567235298,3.41818701,57947.0,57946.0,0.01]
[1617567235498,4.41818701,57947.0,57942.0,0.27]
[1617567235700,0.10725655,57943.0,57942.0,0.27]
[1617567235900,0.10725655,57943.0,57938.0,0.36372465]
[1617567236101,0.10725655,57943.0,57942.0,0.27]
[1617567236299,1.61254232,57943.0,57942.0,0.27]
[1617567236500,0.61254232,57943.0,57939.0,0.01]
[1617567236699,0.61254232,57943.0,57936.0,0.4968]
[1617567236700,1.42101044,57943.0,57942.0,0.27]
[1617567237099,0.10725655,57943.0,57940.0,0.01]
[1617567237300,0.10725655,57943.0,57942.0,3.3184]
[1617567237500,0.10725655,57943.0,57942.0,3.5884]
[1617567237702,0.10725655,57943.0,57942.0,3.3184]
[1617567238102,1.42136364,57943.0,57942.0,3.5884]
[1617567238403,2.42136364,57943.0,57942.0,3.5884]
[1617567242314,1.42136364,57943.0,57942.0,3.5884]
[1617567243008,1.31410709,57943.0,57942.0,3.5884]
[1617567243609,1.31410709,57943.0,57942.0,3.69565655]
[1617567243811,0.80869683,57943.0,57942.0,3.69565655]
[1617567244111,0.8695219,57943.0,57942.0,3.69565655]
[1617567244509,0.80869683,57943.0,57942.0,3.69565655]
[1617567247413,0.80869683,57943.0,57942.0,0.37725655]
[1617567247814,3.65679683,57943.0,57942.0,0.37725655]
[1617567248516,3.93722267,57943.0,57942.0,0.37725655]
[1617567248918,1.08912267,57943.0,57942.0,0.37725655]
[1617567249315,0.80869683,57943.0,57942.0,0.37725655]
[1617567249517,0.80869683,57943.0,57942.0,3.04325655]
[1617567250119,0.86952047,57943.0,57942.0,3.04325655]
[1617567250716,0.80869683,57943.0,57942.0,3.04325655]
[1617567251215,0.50543223,57948.0,57942.0,3.04325655]
[1617567251417,0.36393149,57943.0,57942.0,3.40680711]
[1617567251619,0.36393149,57943.0,57942.0,3.60680711]
[1617567253319,0.36392722,57945.0,57942.0,4.05074305]
[1617567254018,0.36392722,57945.0,57944.0,0.36314592]
[1617567254220,0.36392722,57945.0,57944.0,0.56314592]
[1617567254420,0.36392722,57945.0,57944.0,0.83314592]
[1617567254820,0.36385832,57946.0,57944.0,0.89396664]
[1617567255220,0.36385832,57946.0,57945.0,0.42393675]
[1617567255621,0.36385832,57946.0,57945.0,0.69393675]
[1617567256520,0.42467963,57946.0,57945.0,0.69393675]
[1617567257122,0.36385832,57946.0,57945.0,0.69393675]
[1617567258322,0.36372177,57947.0,57945.0,0.69393675]
[1617567258823,0.36372177,57947.0,57946.0,0.42389881]
[1617567259225,0.36372177,57947.0,57946.0,0.69389881]
[1617567260125,0.3637201,57948.0,57946.0,0.69389881]
[1617567260525,0.3637201,57948.0,57947.0,0.4240841]
[1617567261027,0.3637201,57948.0,57947.0,0.6940841]
[1617567261426,0.4445191,57953.0,57947.0,0.6940841]
[1617567261427,0.36371338,57949.0,57947.0,0.6940841]
[1617567261828,0.10725655,57961.0,57947.0,0.6940841]
[1617567261829,0.36371295,57950.0,57948.0,0.5312505]
[1617567262226,0.36371295,57950.0,57949.0,0.27]
[1617567262428,0.44451561,57953.0,57949.0,0.27]
[1617567262627,0.44451561,57953.0,57952.0,3.4983]
[1617567262829,0.44450707,57955.0,57952.0,3.64141]
[1617567263027,0.44450707,57955.0,57952.0,3.91141]
[1617567263228,0.35741582,57953.0,57952.0,3.97222703]
[1617567263427,0.28221582,57953.0,57952.0,3.97222703]
[1617567263628,0.22111582,57953.0,57952.0,3.97222703]
[1617567264029,0.44447673,57959.0,57952.0,3.97222703]
[1617567264431,0.34537673,57959.0,57952.0,3.91141]
[1617567264629,0.25527673,57959.0,57952.0,3.91141]
[1617567264830,0.20959439,57967.0,57952.0,3.91141]
[1617567265732,0.20959439,57967.0,57952.0,4.91141]
[1617567265933,0.20959439,57967.0,57966.0,0.10725655]
[1617567266333,0.20959439,57967.0,57966.0,0.50895655]
[1617567267134,0.61177417,57971.0,57966.0,0.50895655]
[1617567267834,0.10725655,57971.0,57966.0,0.50895655]
[1617567269035,0.50425151,57972.0,57966.0,0.50895655]
[1617567269735,0.50425151,57972.0,57971.0,3.6112]
[1617567270136,0.50425151,57972.0,57971.0,3.8812]
[1617567270337,0.5042461,57973.0,57971.0,3.8812]
[1617567272141,0.50424797,57972.0,57971.0,3.8812]
[1617567274042,0.10725655,57977.0,57971.0,3.8812]
[1617567274443,0.50424979,57972.0,57971.0,3.8812]
[1617567281759,0.50394798,57973.0,57971.0,3.8812]
[1617567281959,0.50394798,57973.0,57971.0,4.0315]
[1617567282159,0.50394713,57974.0,57972.0,0.10725655]
[1617567282558,0.50394713,57974.0,57973.0,0.27]
[1617567285163,0.44347755,57974.0,57973.0,0.27]
[1617567287465,4.14457755,57974.0,57973.0,0.27]
[1617567288167,4.32505013,57974.0,57973.0,0.27]
[1617567297186,4.32505013,57974.0,57973.0,0.39365]
[1617567302084,4.8303467,57974.0,57973.0,0.39365]
[1617567307288,1.1292467,57974.0,57973.0,0.39365]
[1617567307489,1.1292467,57974.0,57973.0,3.93315]
[1617567307698,1.1292467,57974.0,57973.0,0.27]
[1617567307903,4.27677412,57974.0,57973.0,0.27]
[1617567308299,4.27677412,57974.0,57966.0,0.37725655]
[1617567308300,5.27677412,57974.0,57966.0,0.37725655]
[1617567308499,5.27677412,57974.0,57966.0,0.10725655]
[1617567308692,4.328,57974.0,57973.0,0.01]
[1617567308893,4.328,57974.0,57967.0,0.27]
[1617567309290,4.328,57974.0,57973.0,0.27]
[1617567309491,4.328,57974.0,57967.0,0.27]
[1617567309893,0.95003391,57968.0,57967.0,0.27]
[1617567310292,1.05729046,57968.0,57967.0,0.27]
[1617567317299,1.05729046,57968.0,57967.0,2.9051]
[1617567320304,1.05729046,57968.0,57967.0,3.26859792]
[1617567321606,0.44470317,57968.0,57967.0,3.26859792]
[1617567323608,0.10725655,57977.0,57967.0,3.26859792]
[1617567323808,0.44533302,57968.0,57967.0,3.26859792]
[1617567324408,0.10725655,57977.0,57967.0,3.26859792]
[1617567324610,0.50603754,57971.0,57967.0,3.26859792]
[1617567324909,0.50603754,57971.0,57970.0,0.36342115]
[1617567325208,0.50603754,57971.0,57970.0,0.77860115]
[1617567325409,0.951436,57971.0,57970.0,0.77860115]
[1617567325709,0.951436,57971.0,57970.0,0.83940129]
[1617567326310,0.951436,57971.0,57970.0,4.23240129]
[1617567326714,0.44539846,57971.0,57970.0,4.23240129]
[1617567327925,0.44539846,57971.0,57970.0,6.17621883]
[1617567328142,0.44539846,57971.0,57970.0,7.17621883]
[1617567328331,0.50608432,57975.0,57970.0,7.17621883]
[1617567328332,0.44530128,57975.0,57970.0,7.17621883]
[1617567328514,0.44530128,57975.0,57970.0,3.78321883]
[1617567328718,0.44530128,57975.0,57974.0,3.683]
[1617567328921,0.035,57978.0,57974.0,3.683]
[1617567328922,0.035,57978.0,57975.0,0.2]
[1617567329318,0.035,57978.0,57977.0,1.0]
[1617567329516,0.035,57978.0,57977.0,2.0051546]
[1617567329718,0.035,57978.0,57977.0,2.2751546]
[1617567330217,0.035,57978.0,57977.0,2.33593664]
[1617567330418,0.035,57978.0,57977.0,2.49429319]
[1617567330718,0.035,57978.0,57977.0,2.44319319]
[1617567331119,0.035,57978.0,57977.0,2.53436622]
[1617567331822,0.035,57978.0,57977.0,2.44319319]
[1617567332019,0.035,57978.0,57977.0,2.49539319]
[1617567332219,0.035,57978.0,57977.0,2.58656583]
[1617567332620,0.035,57978.0,57977.0,2.00035816]
[1617567335925,0.035,57978.0,57977.0,2.05155816]
[1617567336524,0.035,57978.0,57977.0,3.55155816]
[1617567337326,0.035,57978.0,57977.0,3.99238358]
[1617567337728,0.035,57978.0,57977.0,3.55155816]
[1617567343331,0.0303,57978.0,57977.0,3.55155816]
[1617567346631,0.44332241,57992.0,57977.0,3.55155816]
[1617567346832,0.0303,57978.0,57977.0,3.55155816]
[1617567347033,0.0303,57978.0,57977.0,2.12845655]
[1617567347433,0.0303,57978.0,57977.0,3.12845655]
[1617567347631,0.0303,57978.0,57977.0,3.48890679]
[1617567347831,0.0303,57978.0,57977.0,5.99970679]
[1617567355545,0.0132,57978.0,57977.0,5.99970679]
[1617567356240,0.0045,57978.0,57977.0,5.99970679]
[1617567356742,0.44305099,57994.0,57977.0,5.99970679]
[1617567357043,0.44305099,57994.0,57981.0,0.2]
[1617567357243,0.44305099,57994.0,57992.0,1.0]
[1617567357442,0.44305099,57994.0,57992.0,1.15074]
[1617567357644,0.44305734,57995.0,57993.0,0.01]
[1617567357843,0.78923591,58000.0,57993.0,0.01]
[1617567358044,3.3431,57994.0,57993.0,0.01]
[1617567358243,3.3431,57994.0,57982.0,1.0]
[1617567358244,3.3431,57994.0,57992.0,0.27]
[1617567358444,3.78615148,57994.0,57982.0,1.0]
[1617567358645,3.78615148,57994.0,57993.0,0.01]
[1617567358843,3.3431,57994.0,57986.0,0.10725655]
[1617567359044,3.3431,57994.0,57987.0,0.27]
[1617567359244,3.7861608,57994.0,57986.0,0.10725655]
[1617567359443,0.4430608,57994.0,57986.0,0.10725655]
[1617567359644,0.44305705,57991.0,57987.0,0.27]
[1617567360647,0.10725655,57988.0,57987.0,3.1454]
[1617567366257,0.10725655,57988.0,57987.0,3.27338]
[1617567366757,0.10725655,57988.0,57987.0,4.27338]
[1617567368160,0.10725655,57988.0,57987.0,3.1454]
[1617567368560,0.44314911,57992.0,57987.0,3.1454]
[1617567370963,0.44371137,57990.0,57987.0,3.1454]
[1617567371162,0.10725655,57994.0,57987.0,3.1454]
[1617567371163,0.44371183,57991.0,57987.0,3.1454]
[1617567372163,0.10725655,57994.0,57987.0,3.1454]
[1617567372164,0.44370751,57990.0,57987.0,3.1454]
[1617567372565,0.44370414,57991.0,57987.0,3.1454]
[1617567372964,0.10725655,57994.0,57987.0,3.1454]
[1617567373367,0.44370583,57991.0,57987.0,3.1454]
[1617567373766,0.44370338,57991.0,57987.0,0.27]
[1617567374166,0.44370338,57991.0,57990.0,3.8009]
[1617567374370,0.4437008,57993.0,57990.0,3.8009]
[1617567374568,0.4437008,57993.0,57991.0,0.0515]
[1617567374767,0.4437008,57993.0,57992.0,0.10725655]
[1617567374968,0.4437008,57993.0,57992.0,0.37725655]
[1617567375169,0.4437008,57993.0,57992.0,1.37725655]
[1617567375369,0.4437008,57993.0,57992.0,0.37725655]
[1617567375568,0.3922008,57993.0,57992.0,0.37725655]
[1617567376470,0.50416209,58001.0,57992.0,0.37725655]
[1617567376670,0.50416209,58001.0,58000.0,0.10725655]
[1617567376871,0.10725655,58003.0,58000.0,0.10725655]
[1617567377070,0.10725655,58003.0,58000.0,0.54552655]
[1617567377271,0.50415195,58001.0,58000.0,0.54552655]
[1617567380879,0.10725655,58003.0,58000.0,0.54552655]
[1617567380880,0.50418476,58002.0,58000.0,0.54552655]
[1617567381284,0.50586971,58001.0,58000.0,0.54552655]
[1617567390496,0.50586971,58001.0,58000.0,0.27]
[1617567390697,3.21216971,58001.0,58000.0,0.27]
[1617567390897,3.21216971,58001.0,57992.0,0.46943474]
[1617567390898,3.21216971,58001.0,57993.0,0.01]
[1617567391299,3.40324255,58001.0,58000.0,0.26]
[1617567391497,3.40324255,58001.0,57992.0,0.10725655]
[1617567391698,3.40324255,58001.0,57993.0,0.27]
[1617567391897,2.89737284,58001.0,58000.0,0.27]
[1617567392097,2.7063,58001.0,58000.0,0.27]
[1617567392299,2.7063,58001.0,57993.0,0.27]
[1617567392498,2.7063,58001.0,58000.0,0.27]
[1617567392699,2.7063,58001.0,58000.0,0.10725655]
[1617567393100,3.21206728,58001.0,58000.0,0.37725655]
[1617567395504,0.50576728,58001.0,58000.0,0.37725655]
[1617567395703,0.50576728,58001.0,58000.0,4.03935655]
[1617567395903,0.95085779,58001.0,58000.0,4.03935655]
[1617567400409,0.95085779,58001.0,58000.0,0.37725655]
[1617567401009,4.37485779,58001.0,58000.0,0.37725655]
[1617567401610,4.56597526,58001.0,58000.0,0.37725655]
[1617567404315,5.13264764,58001.0,58000.0,0.37725655]
[1617567407218,4.62688036,58001.0,58000.0,0.37725655]
[1617567407417,3.424,58001.0,58000.0,0.52374655]
[1617567407819,4.94186257,58001.0,58000.0,0.52374655]
[1617567408319,4.37520602,58001.0,58000.0,0.52374655]
[1617567410621,4.37520602,58001.0,58000.0,0.27]
[1617567411022,4.37520602,58001.0,57993.0,0.27]
[1617567411223,4.94186946,58001.0,57993.0,0.27]
[1617567411423,4.94186946,58001.0,58000.0,0.27]
[1617567411623,3.99066344,58001.0,57993.0,0.27]
[1617567412025,4.73061962,58001.0,58000.0,0.27]
[1617567412223,4.73061962,58001.0,57993.0,0.63288631]
[1617567412423,3.6692,58000.0,57994.0,0.01]
[1617567412824,3.6692,58000.0,57999.0,0.10725655]
[1617567413425,4.81148709,58000.0,57999.0,0.37725655]
[1617567414926,4.91874364,58000.0,57999.0,0.37725655]
[1617567421538,1.24954364,58000.0,57999.0,0.37725655]
[1617567421737,1.14228709,58000.0,57999.0,3.11395655]
[1617567421939,1.14228709,58000.0,57999.0,4.11395655]
[1617567422340,0.95133694,58000.0,57999.0,4.11395655]
[1617567422537,0.95133694,58000.0,57999.0,4.31395655]
[1617567422939,0.44531311,58000.0,57999.0,4.676953]
[1617567423339,0.44531311,58000.0,57999.0,4.12048205]
[1617567423739,0.44531311,58000.0,57999.0,5.12048205]
[1617567424240,0.43901311,58000.0,57999.0,5.12048205]
[1617567424441,0.44521901,58001.0,57999.0,5.12048205]
[1617567424742,0.50592127,58006.0,57999.0,5.12048205]
[1617567424943,0.50592127,58006.0,58005.0,1.10725655]
[1617567425142,0.50592127,58006.0,58005.0,0.61115926]
[1617567425342,0.50592127,58006.0,58005.0,0.88115926]
[1617567425542,0.50592127,58006.0,58005.0,1.94191923]
[1617567426545,0.0002,58009.0,58005.0,1.94191923]
[1617567426945,0.50611023,58009.0,58008.0,1.0]
[1617567427346,0.50611023,58009.0,58008.0,1.63263543]
[1617567427747,0.50611023,58009.0,58008.0,1.69339355]
[1617567428548,0.0002,58009.0,58008.0,1.69339355]
[1617567429649,0.50617308,58011.0,58008.0,1.69339355]
[1617567429850,0.46557308,58011.0,58008.0,1.69339355]
[1617567430053,0.5668883,58021.0,58010.0,1.0]
[1617567430451,0.5668883,58021.0,58015.0,1.36257805]
[1617567430852,0.10725655,58024.0,58015.0,1.0]
[1617567431052,0.10725655,58024.0,58020.0,0.10725655]
[1617567431452,0.10725655,58024.0,58021.0,0.27]
[1617567431652,0.10725655,58024.0,58021.0,0.40505]
[1617567433054,0.56453561,58030.0,58021.0,0.40505]
[1617567433453,0.56450408,58035.0,58029.0,3.6553]
[1617567433854,0.56448917,58037.0,58030.0,0.27]
[1617567434454,0.51318917,58037.0,58030.0,0.27]
[1617567434655,0.035,58044.0,58036.0,1.0]
[1617567434856,0.035,58044.0,58036.0,1.13253]
[1617567435056,0.035,58044.0,58043.0,0.10725655]
[1617567435457,0.035,58044.0,58043.0,0.37624413]
[1617567437057,0.14225655,58044.0,58043.0,0.37624413]
[1617567444662,0.58462183,58044.0,58043.0,0.37624413]
[1617567445262,1.08728479,58044.0,58043.0,0.37624413]
[1617567446064,0.98002824,58044.0,58043.0,0.37523183]
[1617567453871,0.98002824,58044.0,58043.0,0.48926183]
[1617567454873,0.47736528,58044.0,58043.0,0.48926183]
[1617567455073,0.47736528,58044.0,58043.0,0.37523183]
[1617567455474,0.97918219,58044.0,58043.0,0.37523183]
[1617567455674,5.07118219,58044.0,58043.0,0.27]
[1617567456075,6.07118219,58044.0,58023.0,0.27]
[1617567456478,6.03618219,58044.0,58043.0,0.27]
[1617567456675,6.03618219,58044.0,58023.0,0.27]
[1617567456876,0.44163935,58035.0,58023.0,0.27]
[1617567457075,0.57453935,58035.0,58032.0,0.10725655]
[1617567457277,0.44164242,58034.0,58032.0,0.10725655]
[1617567457476,0.44164242,58034.0,58033.0,0.27]
[1617567457877,0.5745419,58035.0,58033.0,0.27]
[1617567458677,0.44164896,58034.0,58033.0,0.27]
[1617567459076,0.54890551,58034.0,58033.0,0.27]
[1617567459877,0.10725655,58034.0,58033.0,0.27]
[1617567461180,0.54901801,58034.0,58033.0,0.27]
[1617567462082,0.54901801,58034.0,58033.0,2.8]
[1617567462779,0.10725655,58034.0,58033.0,2.8]
[1617567463180,0.54901179,58034.0,58033.0,2.8]